fUSD/lending_fUSD_20260318
["ID","MTS","AMOUNT","RATE_DAILY","PERIOD"]
[408546780,1773875446466,-1544.97190607,0.00012464,2]
[408546785,1773875491277,-300.0,0.00012463,2]
[408546786,1773875491301,-4700.0,0.00012464,2]
[408546787,1773875492966,-5000.0,0.00012464,2]
[408546788,1773875494088,-5000.0,0.00012464,2]
[408546789,1773875495161,-5000.0,0.00012464,2]
[408546790,1773875496385,-5000.0,0.00012464,2]
[408546791,1773875497151,-5000.0,0.00012464,2]
[408546792,1773875497812,-5000.0,0.00012464,2]
[408546793,1773875497940,-5000.0,0.00012464,2]
[408546794,1773875498399,-5000.0,0.00012464,2]
[408546795,1773875539995,-722.33,0.00011507,2]
[408546796,1773875540017,-192.94754394,0.00012372,2]
[408546797,1773875540039,-500.0,0.00012457,2]
[408546798,1773875540062,-500.0,0.00012457,2]
[408546799,1773875540084,-500.0,0.00012457,2]
[408546800,1773875540106,-500.0,0.00012457,2]
[408546801,1773875540127,-416.28686454,0.00012457,2]
[408546802,1773875540149,-151.0,0.00012457,2]
[408546803,1773875540176,-151.0,0.00012457,2]
[408546804,1773875540198,-151.0,0.00012457,2]
[408546805,1773875540219,-151.0,0.00012457,2]
[408546806,1773875540240,-500.0,0.00012457,2]
[408546807,1773875540479,-151.0,0.00012457,2]
[408546808,1773875540503,-413.43559152,0.00012457,2]
[408546809,1773875540728,-86.56440848,0.00012457,2]
[408546810,1773875540753,-151.0,0.00012457,2]
[408546811,1773875540776,-529.17570437,0.00012457,2]
[408546812,1773875540800,-151.0,0.00012457,2]
[408546813,1773875540829,-150.0,0.00012463,2]
[408546814,1773875540858,-3932.25988715,0.00012464,2]
[408546815,1773875542355,-151.0,0.00012457,2]
[408546816,1773875542377,-151.0,0.00012457,2]
[408546817,1773875542399,-151.0,0.00012457,2]
[408546818,1773875542422,-4547.0,0.00012464,2]
[408546819,1773875542887,-151.0,0.00012457,2]
[408546820,1773875542910,-4849.0,0.00012464,2]
[408546821,1773875544088,-200.0,0.00012457,2]
[408546822,1773875544113,-151.0,0.00012457,2]
[408546823,1773875544141,-151.0,0.00012457,2]
[408546824,1773875544167,-4498.0,0.00012464,2]
[408546825,1773875544817,-5000.0,0.00012464,2]
[408546826,1773875545671,-5000.0,0.00012464,2]
[408546827,1773875546619,-5000.0,0.00012464,2]
[408546828,1773875548109,-5000.0,0.00012464,2]
[408546829,1773875550487,-5000.0,0.00012464,2]
[408546830,1773875587658,-500.0,0.000128,4]
[408546832,1773875804191,-0.01,0.00012351,2]
[408546833,1773875804223,-9999.99,0.00012351,2]
[408546834,1773875804448,-300.0,0.00012362,2]
[408546835,1773875804478,-1200.0,0.00012363,2]
[408546836,1773875804505,-150.0,0.00012363,2]
[408546837,1773875804579,-6700.01,0.00012364,2]
[408546838,1773875804618,-10000.01,0.00012364,2]
[408546839,1773875804688,-10000.01,0.00012364,2]
[408546840,1773875812137,-3729.2488,0.00012364,2]
[408546841,1773875812160,-2541.5124,0.00012364,2]
[408546842,1773875812249,-3707.3348,0.00012364,2]
[408546843,1773875812277,-85.3404,0.00012364,2]
[408546844,1773875812313,-2414.6596,0.00012364,2]
[408546845,1773875932824,500.0,0.0003013,120]
[408546846,1773876167113,2500.0,0.00030137,120]
[408546847,1773876260450,-150.0,0.00011539,2]
[408546848,1773876260478,-200.0,0.000117,4]
[408546849,1773876260507,-400.0,0.000118,4]
[408546850,1773876260534,-600.0,0.000119,4]
[408546851,1773876260561,-322.47296814,0.00012259,2]
[408546852,1773876260588,-345.16980211,0.00012259,2]
[408546853,1773876260616,-675.71012476,0.00012264,2]
[408546854,1773876260646,-293.25099896,0.00012349,2]
[408546855,1773876260674,-300.0,0.00012356,2]
[408546856,1773876260704,-1000.0,0.00012357,2]
[408546857,1773876260736,-602.90704948,0.00012357,2]
[408546858,1773876260887,-220.9881131,0.00012357,2]
[408546859,1773876261187,-1200.0,0.00012357,2]
[408546860,1773876261216,-150.0,0.00012357,2]
[408546861,1773876261243,-500.0,0.00012358,2]
[408546862,1773876261272,-196.14749804,0.00012358,2]
[408546863,1773876261300,-500.0,0.00012358,2]
[408546864,1773876261328,-500.0,0.00012358,2]
[408546865,1773876261360,-602.66479452,0.00012358,2]
[408546866,1773876261389,-500.0,0.00012358,2]
[408546867,1773876261417,-500.0,0.00012358,2]
[408546868,1773876261521,-283.83905342,0.00012358,2]
[408546869,1773876261551,-178.72497373,0.00012358,2]
[408546870,1773876261579,-307.60092342,0.00012358,2]
[408546871,1773876261607,-347.26007809,0.00012358,2]
[408546872,1773876261637,-500.0,0.00012358,2]
[408546873,1773876261667,-500.0,0.00012358,2]
[408546874,1773876261695,-500.0,0.00012358,2]
[408546875,1773876261727,-500.0,0.00012358,2]
[408546876,1773876261759,-500.0,0.00012358,2]
[408546877,1773876261793,-508.16487536,0.00012358,2]
[408546878,1773876261823,-500.0,0.00012358,2]
[408546879,1773876261860,-248.83019196,0.00012358,2]
[408546880,1773876261901,-251.16980804,0.00012358,2]
[408546881,1773876261930,-500.0,0.00012358,2]
[408546882,1773876261959,-500.0,0.00012358,2]
[408546883,1773876261989,-500.0,0.00012358,2]
[408546884,1773876262017,-500.0,0.00012358,2]
[408546885,1773876262049,-500.0,0.00012358,2]
[408546886,1773876262077,-500.0,0.00012358,2]
[408546887,1773876262106,-490.58863662,0.00012358,2]
[408546888,1773876262134,-515.98213413,0.00012358,2]
[408546889,1773876262164,-219.69348351,0.00012358,2]
[408546890,1773876262201,-500.0,0.00012358,2]
[408546891,1773876263038,-19.44439706,0.00012358,2]
[408546892,1773876263053,-219.69348351,0.00012358,2]
[408546893,1773876263070,-260.86211943,0.00012358,2]
[408546894,1773876263081,-239.13788057,0.00012358,2]
[408546895,1773876263097,-44.55125995,0.00012358,2]
[408546896,1773876263107,-0.59061545,0.00012358,2]
[408546897,1773876263265,-499.40938455,0.00012358,2]
[408546898,1773876263296,-500.0,0.00012358,2]
[408546899,1773876263326,-500.0,0.00012358,2]
[408546900,1773876263356,-500.0,0.00012358,2]
[408546901,1773876263388,-500.0,0.00012358,2]
[408546902,1773876263419,-500.0,0.00012358,2]
[408546903,1773876263450,-500.0,0.00012358,2]
[408546904,1773876263481,-500.0,0.00012358,2]
[408546905,1773876263511,-500.0,0.00012358,2]
[408546906,1773876263542,-500.0,0.00012358,2]
[408546907,1773876263712,-1.1912309,0.00012358,2]
[408546908,1773876263753,-498.8087691,0.00012358,2]
[408546909,1773876263785,-500.0,0.00012358,2]
[408546910,1773876263820,-500.0,0.00012358,2]
[408546911,1773876263854,-500.0,0.00012358,2]
[408546912,1773876264062,-500.0,0.00012358,2]
[408546913,1773876264095,-500.0,0.00012358,2]
[408546914,1773876264127,-500.0,0.00012358,2]
[408546915,1773876264159,-500.0,0.00012358,2]
[408546916,1773876264189,-500.0,0.00012358,2]
[408546917,1773876264219,-500.0,0.00012358,2]
[408546918,1773876264416,-2.3924618,0.00012358,2]
[408546919,1773876266280,-497.6075382,0.00012358,2]
[408546920,1773876266311,-500.0,0.00012358,2]
[408546921,1773876266343,-500.0,0.00012358,2]
[408546922,1773876266373,-500.0,0.00012358,2]
[408546923,1773876266405,-500.0,0.00012358,2]
[408546924,1773876266436,-500.0,0.00012358,2]
[408546925,1773876266467,-500.0,0.00012358,2]
[408546926,1773876266497,-500.0,0.00012358,2]
[408546927,1773876266527,-500.0,0.00012358,2]
[408546928,1773876266556,-500.0,0.00012358,2]
[408546929,1773876266758,-500.0,0.00012358,2]
[408546930,1773876266794,-500.0,0.00012358,2]
[408546931,1773876266826,-500.0,0.00012358,2]
[408546932,1773876266857,-500.0,0.00012358,2]
[408546933,1773876266888,-500.0,0.00012358,2]
[408546934,1773876266916,-171.86535616,0.00012358,2]
[408546935,1773876266948,-500.0,0.00012358,2]
[408546936,1773876266980,-500.0,0.00012358,2]
[408546937,1773876267010,-500.0,0.00012358,2]
[408546938,1773876267042,-500.0,0.00012358,2]
[408546939,1773876267074,-156.27928768,0.00012358,2]
[408546940,1773876267332,-343.72071232,0.00012358,2]
[408546941,1773876267341,-4.7949236,0.00012358,2]
[408546942,1773876269264,-162.48406199,0.00012358,2]
[408546943,1773876269295,-500.0,0.00012358,2]
[408546944,1773876269325,-500.0,0.00012358,2]
[408546945,1773876269355,-500.0,0.00012358,2]
[408546946,1773876269384,-500.0,0.00012358,2]
[408546947,1773876269414,-500.0,0.00012358,2]
[408546948,1773876269445,-500.0,0.00012358,2]
[408546949,1773876269474,-500.0,0.00012358,2]
[408546950,1773876269503,-500.0,0.00012358,2]
[408546951,1773876269532,-500.0,0.00012358,2]
[408546952,1773876269560,-175.04187602,0.00012358,2]
[408546953,1773876270246,-324.95812398,0.00012358,2]
[408546954,1773876270277,-500.0,0.00012358,2]
[408546955,1773876270309,-500.0,0.00012358,2]
[408546956,1773876270340,-500.0,0.00012358,2]
[408546957,1773876270372,-500.0,0.00012358,2]
[408546958,1773876270402,-500.0,0.00012358,2]
[408546959,1773876270437,-500.0,0.00012358,2]
[408546960,1773876270468,-500.0,0.00012358,2]
[408546961,1773876270498,-500.0,0.00012358,2]
[408546962,1773876270528,-500.0,0.00012358,2]
[408546963,1773876270690,-500.0,0.00012358,2]
[408546964,1773876270726,-500.0,0.00012358,2]
[408546965,1773876270759,-500.0,0.00012358,2]
[408546966,1773876270795,-500.0,0.00012358,2]
[408546967,1773876270828,-500.0,0.00012358,2]
[408546968,1773876270860,-500.0,0.00012358,2]
[408546969,1773876362467,159.39,9.356e-05,2]
[408546971,1773876382195,6729.02263416,8e-05,2]
[408546972,1773876536822,142188.54859985,9.5e-05,3]
[408546973,1773876574100,-158.79835502,0.000114,2]
[408546974,1773876586598,1588.80937,0.0003013,120]
[408546977,1773876618681,4846.62749698,0.00011316,2]
[408546987,1773876632217,-1016.20250302,0.00011316,2]
[408546988,1773876632230,-244.0,0.00011437,2]
[408546989,1773876632239,-2000.0,0.00011437,2]
[408546990,1773876632249,-800.0,0.000115,4]
[408546991,1773876632259,-1600.0,0.000116,4]
[408546992,1773876632269,-2500.0,0.000117,4]
[408546993,1773876632278,-158.79835502,0.0001178,2]
[408546994,1773876632288,-300.0,0.00011798,2]
[408546995,1773876632297,-1200.0,0.00011799,2]
[408546996,1773876632307,-300.0,0.00011799,2]
[408546997,1773876632317,-3300.0,0.000118,4]
[408546998,1773876632327,-302.0,0.00011899,2]
[408546999,1773876632336,-4100.0,0.000119,4]
[408547000,1773876632346,-1000.0,0.00012158,2]
[408547001,1773876632355,-266.26542889,0.00012159,2]
[408547002,1773876632364,-158.79835502,0.00012159,2]
[408547003,1773876632374,-795.3440456,0.000122,2]
[408547005,1773876632383,-195.50066597,0.00012248,2]
[408547007,1773876632393,-150.0,0.00012256,2]
[408547008,1773876632402,-500.0,0.00012257,2]
[408547010,1773876632411,-500.0,0.00012257,2]
[408547011,1773876632420,-220.30574931,0.00012257,2]
[408547012,1773876632430,-500.0,0.00012257,2]
[408547013,1773876632439,-248.6873374,0.00012257,2]
[408547014,1773876632448,-500.0,0.00012257,2]
[408547015,1773876632458,-500.0,0.00012257,2]
[408547016,1773876632467,-500.0,0.00012257,2]
[408547017,1773876632478,-500.0,0.00012257,2]
[408547018,1773876632487,-500.0,0.00012257,2]
[408547019,1773876632496,-266.72789856,0.00012257,2]
[408547020,1773876632506,-500.0,0.00012257,2]
[408547022,1773876632515,-500.0,0.00012257,2]
[408547024,1773876632524,-175.0132301,0.00012257,2]
[408547026,1773876632533,-198.18768228,0.00012257,2]
[408547028,1773876632543,-191.07705372,0.00012257,2]
[408547030,1773876632551,-134304.74392242,0.00012258,2]
[408547032,1773876632563,-46042.35377963,0.00012258,2]
[408547034,1773876632574,-1628.35163354,0.00012258,2]
[408547035,1773876632585,-292.91733824,0.00012258,2]
[408547036,1773876632618,-3574.01007193,0.00012258,2]
[408547037,1773876632632,-308.8695174,0.00012258,2]
[408547039,1773876639012,-725.15052989,0.00012258,2]
[408547040,1773876639024,-40370.29201201,0.00012258,2]
[408547041,1773876639035,-412.38002328,0.00012258,2]
[408547042,1773876639046,-4130.39922894,0.00012258,2]
[408547043,1773876639058,-592.00000003,0.00012258,2]
[408547044,1773876639077,-679.38496248,0.00012258,2]
[408547045,1773876639096,-1903.16169488,0.00012258,2]
[408547046,1773876639108,-482.22103934,0.00012258,2]
[408547051,1773876640474,-339.07222198,0.00012158,2]
[408547052,1773876640508,-661.40185784,0.00012158,2]
[408547053,1773876640921,-646.13582018,0.00012158,2]
[408547054,1773876640931,-52394.99584844,0.00012258,2]
[408547055,1773876640943,-40868.93105581,0.00012258,2]
[408547056,1773876640953,-2943.95635846,0.00012258,2]
[408547057,1773876640964,-5239.89376426,0.00012258,2]
[408547059,1773876644743,212.93,0.00030137,120]
[408547078,1773876646043,-343.10411232,0.00012258,2]
[408547089,1773876646140,-3560.5,0.00012258,2]
[408547090,1773876646151,-1982.65516457,0.00012258,2]
[408547091,1773876646161,-289.53899997,0.00012258,2]
[408547092,1773876646172,-71117.50000001,0.00012258,2]
[408547113,1773876646424,-734.61162915,0.00012258,2]
[408547149,1773876690564,1458.0,0.0003013,120]
[408547150,1773876692960,445.0,0.0003013,120]
[408547151,1773876693402,318.0,0.0003013,120]
[408547152,1773876696991,2000.0,0.00030137,120]
[408547153,1773876706343,2000.0,0.00030137,120]
[408547154,1773876716008,2000.0,0.00030137,120]
[408547155,1773876774777,880.0,0.00030136,120]
[408547156,1773877025721,-500.0,0.00011225,2]
[408547157,1773877025750,-326.39216,0.00011274,2]
[408547158,1773877025762,-500.0,0.00011274,2]
[408547159,1773877025773,-7847.22568,0.00011274,2]
[408547160,1773877025783,-300.0,0.00011331,2]
[408547161,1773877025791,-526.39216,0.00011332,2]
[408547162,1773877025921,-2526.22784,0.00011332,2]
[408547163,1773877025948,-2526.22784,0.00011359,2]
[408547164,1773877025963,-2473.77216,0.00011359,2]
[408547165,1773877025972,-1600.0,0.00011387,2]
[408547166,1773877025982,-258.96111543,0.00011478,2]
[408547167,1773877025992,-300.0,0.00011519,2]
[408547168,1773877026002,-300.0,0.00011519,2]
[408547169,1773877026011,-14.82104457,0.00011519,2]
[408547170,1773877036896,-1185.17895543,0.00011519,2]
[408547171,1773877036929,-2926.06,0.00011578,2]
[408547172,1773877036961,-258.96111543,0.00011768,2]
[408547173,1773877036994,-258.96111543,0.00012058,2]
[408547174,1773877037029,-150.20541946,0.00012058,2]
[408547175,1773877037042,-441.2767885,0.00012058,2]
[408547176,1773877037053,-743.90216693,0.00012096,2]
[408547177,1773877037069,-456.09783307,0.00012096,2]
[408547178,1773877037080,-285.76800296,0.00012097,2]
[408547179,1773877037090,-150.0,0.00012099,2]
[408547180,1773877037101,-777.36777935,0.000121,2]
[408547181,1773877037111,-1256.82638462,0.000121,2]
[408547182,1773877037128,-258.96111543,0.000121,2]
[408547183,1773877037151,-214.89373355,0.000121,2]
[408547184,1773877037161,-44.06738188,0.000121,2]
[408547185,1773877037203,-1888.7200188,0.000121,2]
[408547186,1773877037241,-2033.77928494,0.000121,2]
[408547187,1773877037268,-591.48220796,0.000121,2]
[408547188,1773877037332,-1888.7200188,0.000121,2]
[408547189,1773877037348,-2033.77928494,0.000121,2]
[408547190,1773877037360,-2155.01139252,0.000121,2]
[408547191,1773877130901,2507.84,0.0003,120]
[408547192,1773877133701,-5000.0,0.00011391,2]
[408547193,1773877135260,-18.32,0.00011391,2]
[408547194,1773877135287,-1833.86,0.00011405,2]
[408547195,1773877135314,-269.68036219,0.00012058,2]
[408547196,1773877135337,-202.2650218,0.00012058,2]
[408547197,1773877135360,-2675.87461601,0.000121,2]
[408547198,1773877136479,-5000.0,0.000121,2]
[408547199,1773877137593,-5000.0,0.000121,2]
[408547200,1773877138399,-5000.0,0.000121,2]
[408547201,1773877139168,-5000.0,0.000121,2]
[408547202,1773877139543,-5000.0,0.000121,2]
[408547203,1773877140223,-2083.40247977,0.000121,2]
[408547204,1773877140254,-2916.59752023,0.000121,2]
[408547205,1773877140757,-3607.75247977,0.000121,2]
[408547206,1773877140787,-1392.24752023,0.00012155,2]
[408547207,1773877141246,-3687.21679765,0.00012155,2]
[408547208,1773877141277,-500.0,0.00012157,2]
[408547209,1773877141307,-504.21402452,0.00012157,2]
[408547210,1773877141337,-308.56917783,0.00012157,2]
[408547211,1773877141747,-300.0,0.00012099,2]
[408547212,1773877141778,-65.51195835,0.00012157,2]
[408547213,1773877141810,-500.0,0.00012157,2]
[408547214,1773877141846,-208.7536342,0.00012157,2]
[408547215,1773877141876,-500.0,0.00012157,2]
[408547216,1773877141911,-690.69914872,0.00012157,2]
[408547217,1773877141948,-690.69914872,0.00012157,2]
[408547218,1773877141983,-690.69914872,0.00012157,2]
[408547219,1773877142016,-690.69914872,0.00012157,2]
[408547220,1773877142050,-662.93781257,0.00012157,2]
[408547221,1773877142478,-27.76133615,0.00012157,2]
[408547222,1773877142512,-690.69914872,0.00012157,2]
[408547223,1773877142543,-690.69914872,0.00012157,2]
[408547224,1773877142576,-690.69914872,0.00012157,2]
[408547225,1773877142606,-690.69914872,0.00012157,2]
[408547226,1773877142638,-690.69914872,0.00012157,2]
[408547227,1773877142671,-690.69914872,0.00012157,2]
[408547228,1773877142705,-690.69914872,0.00012157,2]
[408547229,1773877142739,-137.34462281,0.00012157,2]
[408547230,1773877142898,-150.0,0.00012156,2]
[408547231,1773877142928,-553.35452591,0.00012157,2]
[408547232,1773877142956,-690.69914872,0.00012157,2]
[408547233,1773877142981,-690.69914872,0.00012157,2]
[408547234,1773877143005,-690.69914872,0.00012157,2]
[408547235,1773877143032,-690.69914872,0.00012157,2]
[408547236,1773877143352,-690.69914872,0.00012157,2]
[408547237,1773877143401,-690.69914872,0.00012157,2]
[408547238,1773877143426,-152.45058177,0.00012157,2]
[408547239,1773877143472,-300.0,0.00012099,2]
[408547240,1773877143497,-538.24856695,0.00012157,2]
[408547241,1773877143520,-690.69914872,0.00012157,2]
[408547242,1773877143543,-690.69914872,0.00012157,2]
[408547243,1773877143567,-690.69914872,0.00012157,2]
[408547244,1773877143591,-690.69914872,0.00012157,2]
[408547245,1773877143615,-690.69914872,0.00012157,2]
[408547246,1773877143641,-690.69914872,0.00012157,2]
[408547247,1773877143665,-17.55654073,0.00012157,2]
[408547248,1773877144067,-673.14260799,0.00012157,2]
[408547249,1773877144095,-690.69914872,0.00012157,2]
[408547250,1773877144121,-690.69914872,0.00012157,2]
[408547251,1773877144148,-690.69914872,0.00012157,2]
[408547252,1773877144174,-690.69914872,0.00012157,2]
[408547253,1773877144200,-690.69914872,0.00012157,2]
[408547254,1773877144226,-690.69914872,0.00012157,2]
[408547255,1773877144253,-182.66249969,0.00012157,2]
[408547256,1773877146165,-508.03664903,0.00012157,2]
[408547257,1773877146195,-690.69914872,0.00012157,2]
[408547258,1773877146224,-690.69914872,0.00012157,2]
[408547259,1773877146253,-690.69914872,0.00012157,2]
[408547260,1773877146284,-690.69914872,0.00012157,2]
[408547261,1773877146314,-690.69914872,0.00012157,2]
[408547262,1773877146341,-690.69914872,0.00012157,2]
[408547263,1773877146368,-347.76845865,0.00012157,2]
[408547264,1773877147556,-342.93069007,0.00012157,2]
[408547265,1773877147589,-690.69914872,0.00012157,2]
[408547266,1773877147623,-690.69914872,0.00012157,2]
[408547267,1773877147656,-690.69914872,0.00012157,2]
[408547268,1773877147689,-690.69914872,0.00012157,2]
[408547269,1773877147721,-690.69914872,0.00012157,2]
[408547270,1773877147755,-690.69914872,0.00012157,2]
[408547271,1773877147792,-512.87441761,0.00012157,2]
[408547272,1773877163159,-5000.0,0.00012058,2]
[408547273,1773877164347,-5000.0,0.00012058,2]
[408547274,1773877165355,-5000.0,0.00012058,2]
[408547275,1773877166581,-5000.0,0.00012058,2]
[408547276,1773877167283,-5000.0,0.00012058,2]
[408547277,1773877167998,-3190.7558,0.00012058,2]
[408547278,1773877168024,-462.7038671,0.000121,2]
[408547279,1773877168051,-177.82473111,0.00012157,2]
[408547280,1773877168078,-690.69914872,0.00012157,2]
[408547281,1773877168104,-478.01645307,0.00012157,2]
[408547282,1773877192455,-3932.74,0.00011957,2]
[408547283,1773877192477,-1067.26,0.00012025,2]
[408547284,1773877193854,-2179.1908429,0.00012025,2]
[408547285,1773877193882,-945.01750694,0.00012048,2]
[408547286,1773877193905,-1875.79165016,0.00012058,2]
[408547287,1773877194558,-487.7729463,0.00012058,2]
[408547288,1773877194579,-500.0,0.00012157,2]
[408547289,1773877194608,-212.68269565,0.00012157,2]
[408547290,1773877194632,-690.69914872,0.00012157,2]
[408547291,1773877194652,-150.0,0.00012157,2]
[408547292,1773877194676,-685.38607835,0.00012157,2]
[408547293,1773877194701,-685.38607835,0.00012157,2]
[408547294,1773877194729,-685.38607835,0.00012157,2]
[408547295,1773877194753,-685.38607835,0.00012157,2]
[408547296,1773877194777,-217.30089593,0.00012157,2]
[408547297,1773877195457,-468.08518242,0.00012157,2]
[408547298,1773877195483,-685.38607835,0.00012157,2]
[408547299,1773877195508,-685.38607835,0.00012157,2]
[408547300,1773877195532,-685.38607835,0.00012157,2]
[408547301,1773877195557,-685.38607835,0.00012157,2]
[408547302,1773877195581,-685.38607835,0.00012157,2]
[408547303,1773877195604,-685.38607835,0.00012157,2]
[408547304,1773877195631,-419.59834748,0.00012157,2]
[408547306,1773877596119,-338.54174123,0.00011383,2]
[408547318,1773877831778,-721.31825877,0.00011383,2]
[408547320,1773877831787,-1554.4803455,0.00011383,2]
[408547321,1773877831810,-297.9396545,0.00011383,2]
[408547323,1773877831819,-243.0,0.00011383,2]
[408547324,1773877831828,-200.0,0.000115,4]
[408547325,1773877831838,-500.0,0.000116,4]
[408547326,1773877831848,-1200.0,0.00011619,2]
[408547327,1773877831858,-209.23437848,0.0001162,2]
[408547328,1773877831869,-458.44747329,0.0001162,2]
[408547329,1773877831890,-2099.05285023,0.0001162,2]
[408547330,1773877831900,-700.0,0.000117,4]
[408547331,1773877831910,-300.0,0.00011799,2]
[408547332,1773877831920,-300.0,0.00011799,2]
[408547333,1773877831929,-300.0,0.00011799,2]
[408547334,1773877831940,-676.80311437,0.000118,4]
[408547335,1773877831954,-323.19688563,0.000118,4]
[408547336,1773877831965,-357.6106,0.00011857,2]
[408547337,1773877831975,-177.51028592,0.00011858,2]
[408547338,1773877831985,-1200.0,0.000119,4]
[408547339,1773877831995,-195.50066598,0.00011948,2]
[408547340,1773877832005,-500.0,0.00011957,2]
[408547341,1773877832015,-500.0,0.00011957,2]
[408547342,1773877832023,-209.99753315,0.00011957,2]
[408547343,1773877832032,-306.9393686,0.00011957,2]
[408547344,1773877832042,-515.24788734,0.00011957,2]
[408547345,1773877832051,-515.24788734,0.00011957,2]
[408547346,1773877832060,-515.24788734,0.00011957,2]
[408547347,1773877832070,-515.24788734,0.00011957,2]
[408547348,1773877832079,-515.24788734,0.00011957,2]
[408547349,1773877832088,-515.24788734,0.00011957,2]
[408547350,1773877832098,-515.24788734,0.00011957,2]
[408547351,1773877832107,-515.24788734,0.00011957,2]
[408547352,1773877832116,-515.24788734,0.00011957,2]
[408547353,1773877832125,-515.24788734,0.00011957,2]
[408547354,1773877832135,-515.24788734,0.00011957,2]
[408547355,1773877832147,-515.24788734,0.00011957,2]
[408547356,1773877832156,-515.24788734,0.00011957,2]
[408547357,1773877832166,-515.24788734,0.00011957,2]
[408547358,1773877832175,-515.24788734,0.00011957,2]
[408547359,1773877832186,-515.24788734,0.00011957,2]
[408547360,1773877832196,-515.24788734,0.00011957,2]
[408547361,1773877832206,-515.24788734,0.00011957,2]
[408547362,1773877832218,-515.24788734,0.00011957,2]
[408547363,1773877832227,-515.24788734,0.00011957,2]
[408547364,1773877832236,-515.24788734,0.00011957,2]
[408547365,1773877832246,-515.24788734,0.00011957,2]
[408547366,1773877832255,-515.24788734,0.00011957,2]
[408547367,1773877832264,-515.24788734,0.00011957,2]
[408547368,1773877832274,-515.24788734,0.00011957,2]
[408547369,1773877832283,-515.24788734,0.00011957,2]
[408547370,1773877832292,-515.24788734,0.00011957,2]
[408547371,1773877832301,-515.24788734,0.00011957,2]
[408547372,1773877832311,-515.24788734,0.00011957,2]
[408547373,1773877832320,-515.24788734,0.00011957,2]
[408547374,1773877832329,-515.24788734,0.00011957,2]
[408547375,1773877832339,-515.24788734,0.00011957,2]
[408547376,1773877832348,-515.24788734,0.00011957,2]
[408547377,1773877832357,-515.24788734,0.00011957,2]
[408547378,1773877832367,-515.24788734,0.00011957,2]
[408547379,1773877832376,-515.24788734,0.00011957,2]
[408547380,1773877832385,-515.24788734,0.00011957,2]
[408547381,1773877832394,-515.24788734,0.00011957,2]
[408547382,1773877832404,-515.24788734,0.00011957,2]
[408547383,1773877832413,-515.24788734,0.00011957,2]
[408547384,1773877832422,-515.24788734,0.00011957,2]
[408547385,1773877832432,-515.24788734,0.00011957,2]
[408547386,1773877832442,-515.24788734,0.00011957,2]
[408547387,1773877832452,-515.24788734,0.00011957,2]
[408547388,1773877832462,-515.24788734,0.00011957,2]
[408547389,1773877832472,-515.24788734,0.00011957,2]
[408547390,1773877832482,-515.24788734,0.00011957,2]
[408547391,1773877832492,-515.24788734,0.00011957,2]
[408547392,1773877832502,-515.24788734,0.00011957,2]
[408547393,1773877832512,-510.09540847,0.00011957,2]
[408547394,1773877832522,-510.09540847,0.00011957,2]
[408547395,1773877832532,-510.09540847,0.00011957,2]
[408547396,1773877832541,-510.09540847,0.00011957,2]
[408547397,1773877832550,-510.09540847,0.00011957,2]
[408547398,1773877832559,-510.09540847,0.00011957,2]
[408547399,1773877832569,-510.09540847,0.00011957,2]
[408547400,1773877832578,-510.09540847,0.00011957,2]
[408547401,1773877832588,-510.09540847,0.00011957,2]
[408547402,1773877832597,-510.09540847,0.00011957,2]
[408547403,1773877832607,-510.09540847,0.00011957,2]
[408547404,1773877832616,-510.09540847,0.00011957,2]
[408547405,1773877832625,-510.09540847,0.00011957,2]
[408547406,1773877832634,-510.09540847,0.00011957,2]
[408547407,1773877832643,-510.09540847,0.00011957,2]
[408547408,1773877832653,-510.09540847,0.00011957,2]
[408547409,1773877832663,-510.09540847,0.00011957,2]